{"text_format":"3","workbook":"xlsx","n_sheets":1,"sheets":["Ετήσιο φύλλο κατανομής χρόνου"],"not_rendered":{"defined_names":2},"read":"whole","date_system":"1900"}

{"sheet":"Ετήσιο φύλλο κατανομής χρόνου","index":0,"n_rows":140,"n_cols":12,"rows_kept":140,"merged":[[0,1,1,11],[2,6,2,7],[2,8,2,9],[5,1,5,11],[39,1,39,11],[73,1,73,11],[107,1,107,11]]}
[null,"Κάρτα χρόνου υπαλλήλου"]
[]
[null,"Όνομα υπαλλήλου:",null,"Διεύθυνση ηλεκτρονικού ταχυδρομείου:",null,null,"Σύνολα τρέχοντος έτους:"]
[null,"Προϊστάμενος:",null,"Τηλέφωνο:",null,null,"Κανονικές ώρες:",{"$f":"SUM(C16,C27,C38,C50,C61,C72,C84,C95,C106,C118,C129,C140)","v":0},"Ώρες υπερωριών:",{"$f":"SUM(F16,F27,F38,F50,F61,F72,F84,F95,F106,F118,F129,F140)","v":0},"Σύνολο:",{"$f":"SUM(H4:J4)","v":0}]
[]
[null,"Ιανουάριος, Φεβρουάριος, Μάρτιος      Κάρτα χρόνου υπαλλήλου: Ημερήσια, Εβδομαδιαία, Μηνιαία, Ετήσια"]
[null,"Ιανουάριος","Εβδομάδα 1","Υπερωρίες","Εβδομάδα 2","Υπερωρίες ","Εβδομάδα 3","Υπερωρίες  ","Εβδομάδα 4","Υπερωρίες   ","Εβδομάδα 5","Υπερωρίες    "]
[null,"Δευτέρα"]
[null,"Τρίτη"]
[null,"Τετάρτη"]
[null,"Πέμπτη"]
[null,"Παρασκευή"]
[null,"Σάββατο"]
[null,"Κυριακή"]
[null,"Σύνολο εβδομαδιαίων ωρών",{"$f":"SUBTOTAL(109,Ιανουάριος[Εβδομάδα 1])","v":0},{"$f":"SUBTOTAL(109,Ιανουάριος[Υπερωρίες])","v":0},{"$f":"SUBTOTAL(109,Ιανουάριος[Εβδομάδα 2])","v":0},{"$f":"SUBTOTAL(109,Ιανουάριος[[Υπερωρίες ]])","v":0},{"$f":"SUBTOTAL(109,Ιανουάριος[Εβδομάδα 3])","v":0},{"$f":"SUBTOTAL(109,Ιανουάριος[[Υπερωρίες  ]])","v":0},{"$f":"SUBTOTAL(109,Ιανουάριος[Εβδομάδα 4])","v":0},{"$f":"SUBTOTAL(109,Ιανουάριος[[Υπερωρίες   ]])","v":0},{"$f":"SUBTOTAL(109,Ιανουάριος[Εβδομάδα 5])","v":0},{"$f":"SUBTOTAL(109,Ιανουάριος[[Υπερωρίες    ]])","v":0}]
[null,"Σύνολο Ιαν.: Κανονικές ώρες",{"$f":"SUM(Ιανουάριος[[#Totals],[Εβδομάδα 1]],Ιανουάριος[[#Totals],[Εβδομάδα 2]],Ιανουάριος[[#Totals],[Εβδομάδα 3]],Ιανουάριος[[#Totals],[Εβδομάδα 4]],Ιανουάριος[[#Totals],[Εβδομάδα 5]])","v":0},"Σύνολο Ιαν.: Υπερωρίες",null,{"$f":"SUM(Ιανουάριος[[#Totals],[Υπερωρίες]],Ιανουάριος[[#Totals],[Υπερωρίες ]],Ιανουάριος[[#Totals],[Υπερωρίες  ]],Ιανουάριος[[#Totals],[Υπερωρίες   ]],Ιανουάριος[[#Totals],[Υπερωρίες    ]])","v":0}]
[]
[null,"Φεβρουάριος","Εβδομάδα 1","Υπερωρίες","Εβδομάδα 2","Υπερωρίες ","Εβδομάδα 3","Υπερωρίες  ","Εβδομάδα 4","Υπερωρίες   ","Εβδομάδα 5","Υπερωρίες    "]
[null,"Δευτέρα"]
[null,"Τρίτη"]
[null,"Τετάρτη"]
[null,"Πέμπτη"]
[null,"Παρασκευή"]
[null,"Σάββατο"]
[null,"Κυριακή"]
[null,"Σύνολο εβδομαδιαίων ωρών",{"$f":"SUBTOTAL(109,Φεβρουάριος[Εβδομάδα 1])","v":0},{"$f":"SUBTOTAL(109,Φεβρουάριος[Υπερωρίες])","v":0},{"$f":"SUBTOTAL(109,Φεβρουάριος[Εβδομάδα 2])","v":0},{"$f":"SUBTOTAL(109,Φεβρουάριος[[Υπερωρίες ]])","v":0},{"$f":"SUBTOTAL(109,Φεβρουάριος[Εβδομάδα 3])","v":0},{"$f":"SUBTOTAL(109,Φεβρουάριος[[Υπερωρίες  ]])","v":0},{"$f":"SUBTOTAL(109,Φεβρουάριος[Εβδομάδα 4])","v":0},{"$f":"SUBTOTAL(109,Φεβρουάριος[[Υπερωρίες   ]])","v":0},{"$f":"SUBTOTAL(109,Φεβρουάριος[Εβδομάδα 5])","v":0},{"$f":"SUBTOTAL(109,Φεβρουάριος[[Υπερωρίες    ]])","v":0}]
[null,"Σύνολο Φεβ.: Κανονικές ώρες",{"$f":"SUM(Φεβρουάριος[[#Totals],[Εβδομάδα 1]],Φεβρουάριος[[#Totals],[Εβδομάδα 2]],Φεβρουάριος[[#Totals],[Εβδομάδα 3]],Φεβρουάριος[[#Totals],[Εβδομάδα 4]],Φεβρουάριος[[#Totals],[Εβδομάδα 5]])","v":0},"Σύνολο Φεβ.: Υπερωρίες",null,{"$f":"SUM(Φεβρουάριος[[#Totals],[Υπερωρίες]],Φεβρουάριος[[#Totals],[Υπερωρίες ]],Φεβρουάριος[[#Totals],[Υπερωρίες  ]],Φεβρουάριος[[#Totals],[Υπερωρίες   ]],Φεβρουάριος[[#Totals],[Υπερωρίες    ]])","v":0}]
[]
[null,"Μάρτιος","Εβδομάδα 1","Υπερωρίες","Εβδομάδα 2","Υπερωρίες ","Εβδομάδα 3","Υπερωρίες  ","Εβδομάδα 4","Υπερωρίες   ","Εβδομάδα 5","Υπερωρίες    "]
[null,"Δευτέρα"]
[null,"Τρίτη"]
[null,"Τετάρτη"]
[null,"Πέμπτη"]
[null,"Παρασκευή"]
[null,"Σάββατο"]
[null,"Κυριακή"]
[null,"Σύνολο εβδομαδιαίων ωρών",{"$f":"SUBTOTAL(109,Μάρτιος[Εβδομάδα 1])","v":0},{"$f":"SUBTOTAL(109,Μάρτιος[Υπερωρίες])","v":0},{"$f":"SUBTOTAL(109,Μάρτιος[Εβδομάδα 2])","v":0},{"$f":"SUBTOTAL(109,Μάρτιος[[Υπερωρίες ]])","v":0},{"$f":"SUBTOTAL(109,Μάρτιος[Εβδομάδα 3])","v":0},{"$f":"SUBTOTAL(109,Μάρτιος[[Υπερωρίες  ]])","v":0},{"$f":"SUBTOTAL(109,Μάρτιος[Εβδομάδα 4])","v":0},{"$f":"SUBTOTAL(109,Μάρτιος[[Υπερωρίες   ]])","v":0},{"$f":"SUBTOTAL(109,Μάρτιος[Εβδομάδα 5])","v":0},{"$f":"SUBTOTAL(109,Μάρτιος[[Υπερωρίες    ]])","v":0}]
[null,"Σύνολο Μαρ.: Κανονικές ώρες",{"$f":"SUM(Μάρτιος[[#Totals],[Εβδομάδα 1]],Μάρτιος[[#Totals],[Εβδομάδα 2]],Μάρτιος[[#Totals],[Εβδομάδα 3]],Μάρτιος[[#Totals],[Εβδομάδα 4]],Μάρτιος[[#Totals],[Εβδομάδα 5]])","v":0},"Σύνολο Μαρ.: Υπερωρίες",null,{"$f":"SUM(Μάρτιος[[#Totals],[Υπερωρίες]],Μάρτιος[[#Totals],[Υπερωρίες ]],Μάρτιος[[#Totals],[Υπερωρίες  ]],Μάρτιος[[#Totals],[Υπερωρίες   ]],Μάρτιος[[#Totals],[Υπερωρίες    ]])","v":0}]
[]
[null,"Απρίλιος, Μάιος, Ιούνιος      Κάρτα χρόνου υπαλλήλου: Ημερήσια, Εβδομαδιαία, Μηνιαία, Ετήσια"]
[null,"Απρίλιος","Εβδομάδα 1","Υπερωρίες","Εβδομάδα 2","Υπερωρίες ","Εβδομάδα 3","Υπερωρίες  ","Εβδομάδα 4","Υπερωρίες   ","Εβδομάδα 5","Υπερωρίες    "]
[null,"Δευτέρα"]
[null,"Τρίτη"]
[null,"Τετάρτη"]
[null,"Πέμπτη"]
[null,"Παρασκευή"]
[null,"Σάββατο"]
[null,"Κυριακή"]
[null,"Σύνολο εβδομαδιαίων ωρών",{"$f":"SUBTOTAL(109,Απρίλιος[Εβδομάδα 1])","v":0},{"$f":"SUBTOTAL(109,Απρίλιος[Υπερωρίες])","v":0},{"$f":"SUBTOTAL(109,Απρίλιος[Εβδομάδα 2])","v":0},{"$f":"SUBTOTAL(109,Απρίλιος[[Υπερωρίες ]])","v":0},{"$f":"SUBTOTAL(109,Απρίλιος[Εβδομάδα 3])","v":0},{"$f":"SUBTOTAL(109,Απρίλιος[[Υπερωρίες  ]])","v":0},{"$f":"SUBTOTAL(109,Απρίλιος[Εβδομάδα 4])","v":0},{"$f":"SUBTOTAL(109,Απρίλιος[[Υπερωρίες   ]])","v":0},{"$f":"SUBTOTAL(109,Απρίλιος[Εβδομάδα 5])","v":0},{"$f":"SUBTOTAL(109,Απρίλιος[[Υπερωρίες    ]])","v":0}]
[null,"Σύνολο Απρ.: Κανονικές ώρες",{"$f":"SUM(Απρίλιος[[#Totals],[Εβδομάδα 1]],Απρίλιος[[#Totals],[Εβδομάδα 2]],Απρίλιος[[#Totals],[Εβδομάδα 3]],Απρίλιος[[#Totals],[Εβδομάδα 4]],Απρίλιος[[#Totals],[Εβδομάδα 5]])","v":0},"Σύνολο Απρ.: Υπερωρίες",null,{"$f":"SUM(Απρίλιος[[#Totals],[Υπερωρίες]],Απρίλιος[[#Totals],[Υπερωρίες ]],Απρίλιος[[#Totals],[Υπερωρίες  ]],Απρίλιος[[#Totals],[Υπερωρίες   ]],Απρίλιος[[#Totals],[Υπερωρίες    ]])","v":0}]
[]
[null,"Μάιος","Εβδομάδα 1","Υπερωρίες","Εβδομάδα 2","Υπερωρίες ","Εβδομάδα 3","Υπερωρίες  ","Εβδομάδα 4","Υπερωρίες   ","Εβδομάδα 5","Υπερωρίες    "]
[null,"Δευτέρα"]
[null,"Τρίτη"]
[null,"Τετάρτη"]
[null,"Πέμπτη"]
[null,"Παρασκευή"]
[null,"Σάββατο"]
[null,"Κυριακή"]
[null,"Σύνολο εβδομαδιαίων ωρών",{"$f":"SUBTOTAL(109,Μάιος[Εβδομάδα 1])","v":0},{"$f":"SUBTOTAL(109,Μάιος[Υπερωρίες])","v":0},{"$f":"SUBTOTAL(109,Μάιος[Εβδομάδα 2])","v":0},{"$f":"SUBTOTAL(109,Μάιος[[Υπερωρίες ]])","v":0},{"$f":"SUBTOTAL(109,Μάιος[Εβδομάδα 3])","v":0},{"$f":"SUBTOTAL(109,Μάιος[[Υπερωρίες  ]])","v":0},{"$f":"SUBTOTAL(109,Μάιος[Εβδομάδα 4])","v":0},{"$f":"SUBTOTAL(109,Μάιος[[Υπερωρίες   ]])","v":0},{"$f":"SUBTOTAL(109,Μάιος[Εβδομάδα 5])","v":0},{"$f":"SUBTOTAL(109,Μάιος[[Υπερωρίες    ]])","v":0}]
[null,"Σύνολο Μαΐου: Κανονικές ώρες",{"$f":"SUM(Μάιος[[#Totals],[Εβδομάδα 1]],Μάιος[[#Totals],[Εβδομάδα 2]],Μάιος[[#Totals],[Εβδομάδα 3]],Μάιος[[#Totals],[Εβδομάδα 4]],Μάιος[[#Totals],[Εβδομάδα 5]])","v":0},"Σύνολο Μαΐου: Υπερωρίες",null,{"$f":"SUM(Μάιος[[#Totals],[Υπερωρίες]],Μάιος[[#Totals],[Υπερωρίες ]],Μάιος[[#Totals],[Υπερωρίες  ]],Μάιος[[#Totals],[Υπερωρίες   ]],Μάιος[[#Totals],[Υπερωρίες    ]])","v":0}]
[]
[null,"Ιούνιος","Εβδομάδα 1","Υπερωρίες","Εβδομάδα 2","Υπερωρίες ","Εβδομάδα 3","Υπερωρίες  ","Εβδομάδα 4","Υπερωρίες   ","Εβδομάδα 5","Υπερωρίες    "]
[null,"Δευτέρα"]
[null,"Τρίτη"]
[null,"Τετάρτη"]
[null,"Πέμπτη"]
[null,"Παρασκευή"]
[null,"Σάββατο"]
[null,"Κυριακή"]
[null,"Σύνολο εβδομαδιαίων ωρών",{"$f":"SUBTOTAL(109,Ιούνιος[Εβδομάδα 1])","v":0},{"$f":"SUBTOTAL(109,Ιούνιος[Υπερωρίες])","v":0},{"$f":"SUBTOTAL(109,Ιούνιος[Εβδομάδα 2])","v":0},{"$f":"SUBTOTAL(109,Ιούνιος[[Υπερωρίες ]])","v":0},{"$f":"SUBTOTAL(109,Ιούνιος[Εβδομάδα 3])","v":0},{"$f":"SUBTOTAL(109,Ιούνιος[[Υπερωρίες  ]])","v":0},{"$f":"SUBTOTAL(109,Ιούνιος[Εβδομάδα 4])","v":0},{"$f":"SUBTOTAL(109,Ιούνιος[[Υπερωρίες   ]])","v":0},{"$f":"SUBTOTAL(109,Ιούνιος[Εβδομάδα 5])","v":0},{"$f":"SUBTOTAL(109,Ιούνιος[[Υπερωρίες    ]])","v":0}]
[null,"Σύνολο Ιουνίου: Κανονικές ώρες",{"$f":"SUM(Ιούνιος[[#Totals],[Εβδομάδα 1]],Ιούνιος[[#Totals],[Εβδομάδα 2]],Ιούνιος[[#Totals],[Εβδομάδα 3]],Ιούνιος[[#Totals],[Εβδομάδα 4]],Ιούνιος[[#Totals],[Εβδομάδα 5]])","v":0},"Σύνολο Ιουνίου: Υπερωρίες",null,{"$f":"SUM(Ιούνιος[[#Totals],[Υπερωρίες]],Ιούνιος[[#Totals],[Υπερωρίες ]],Ιούνιος[[#Totals],[Υπερωρίες  ]],Ιούνιος[[#Totals],[Υπερωρίες   ]],Ιούνιος[[#Totals],[Υπερωρίες    ]])","v":0}]
[]
[null,"Ιούλιος, Αύγουστος, Σεπτέμβριος      Κάρτα χρόνου υπαλλήλου: Ημερήσια, Εβδομαδιαία, Μηνιαία, Ετήσια"]
[null,"Ιούλιος","Εβδομάδα 1","Υπερωρίες","Εβδομάδα 2","Υπερωρίες ","Εβδομάδα 3","Υπερωρίες  ","Εβδομάδα 4","Υπερωρίες   ","Εβδομάδα 5","Υπερωρίες    "]
[null,"Δευτέρα"]
[null,"Τρίτη"]
[null,"Τετάρτη"]
[null,"Πέμπτη"]
[null,"Παρασκευή"]
[null,"Σάββατο"]
[null,"Κυριακή"]
[null,"Σύνολο εβδομαδιαίων ωρών",{"$f":"SUBTOTAL(109,Ιούλιος[Εβδομάδα 1])","v":0},{"$f":"SUBTOTAL(109,Ιούλιος[Υπερωρίες])","v":0},{"$f":"SUBTOTAL(109,Ιούλιος[Εβδομάδα 2])","v":0},{"$f":"SUBTOTAL(109,Ιούλιος[[Υπερωρίες ]])","v":0},{"$f":"SUBTOTAL(109,Ιούλιος[Εβδομάδα 3])","v":0},{"$f":"SUBTOTAL(109,Ιούλιος[[Υπερωρίες  ]])","v":0},{"$f":"SUBTOTAL(109,Ιούλιος[Εβδομάδα 4])","v":0},{"$f":"SUBTOTAL(109,Ιούλιος[[Υπερωρίες   ]])","v":0},{"$f":"SUBTOTAL(109,Ιούλιος[Εβδομάδα 5])","v":0},{"$f":"SUBTOTAL(109,Ιούλιος[[Υπερωρίες    ]])","v":0}]
[null,"Σύνολο Ιουλίου: Κανονικές ώρες",{"$f":"SUM(Ιούλιος[[#Totals],[Εβδομάδα 1]],Ιούλιος[[#Totals],[Εβδομάδα 2]],Ιούλιος[[#Totals],[Εβδομάδα 3]],Ιούλιος[[#Totals],[Εβδομάδα 4]],Ιούλιος[[#Totals],[Εβδομάδα 5]])","v":0},"Σύνολο Ιουλίου: Υπερωρίες",null,{"$f":"SUM(Ιούλιος[[#Totals],[Υπερωρίες]],Ιούλιος[[#Totals],[Υπερωρίες ]],Ιούλιος[[#Totals],[Υπερωρίες  ]],Ιούλιος[[#Totals],[Υπερωρίες   ]],Ιούλιος[[#Totals],[Υπερωρίες    ]])","v":0}]
[]
[null,"Αύγουστος","Εβδομάδα 1","Υπερωρίες","Εβδομάδα 2","Υπερωρίες ","Εβδομάδα 3","Υπερωρίες  ","Εβδομάδα 4","Υπερωρίες   ","Εβδομάδα 5","Υπερωρίες    "]
[null,"Δευτέρα"]
[null,"Τρίτη"]
[null,"Τετάρτη"]
[null,"Πέμπτη"]
[null,"Παρασκευή"]
[null,"Σάββατο"]
[null,"Κυριακή"]
[null,"Σύνολο εβδομαδιαίων ωρών",{"$f":"SUBTOTAL(109,Αύγουστος[Εβδομάδα 1])","v":0},{"$f":"SUBTOTAL(109,Αύγουστος[Υπερωρίες])","v":0},{"$f":"SUBTOTAL(109,Αύγουστος[Εβδομάδα 2])","v":0},{"$f":"SUBTOTAL(109,Αύγουστος[[Υπερωρίες ]])","v":0},{"$f":"SUBTOTAL(109,Αύγουστος[Εβδομάδα 3])","v":0},{"$f":"SUBTOTAL(109,Αύγουστος[[Υπερωρίες  ]])","v":0},{"$f":"SUBTOTAL(109,Αύγουστος[Εβδομάδα 4])","v":0},{"$f":"SUBTOTAL(109,Αύγουστος[[Υπερωρίες   ]])","v":0},{"$f":"SUBTOTAL(109,Αύγουστος[Εβδομάδα 5])","v":0},{"$f":"SUBTOTAL(109,Αύγουστος[[Υπερωρίες    ]])","v":0}]
[null,"Σύνολο Αυγ.: Κανονικές ώρες",{"$f":"SUM(Αύγουστος[[#Totals],[Εβδομάδα 1]],Αύγουστος[[#Totals],[Εβδομάδα 2]],Αύγουστος[[#Totals],[Εβδομάδα 3]],Αύγουστος[[#Totals],[Εβδομάδα 4]],Αύγουστος[[#Totals],[Εβδομάδα 5]])","v":0},"Σύνολο Αυγ.: Υπερωρίες",null,{"$f":"SUM(Αύγουστος[[#Totals],[Υπερωρίες]],Αύγουστος[[#Totals],[Υπερωρίες ]],Αύγουστος[[#Totals],[Υπερωρίες  ]],Αύγουστος[[#Totals],[Υπερωρίες   ]],Αύγουστος[[#Totals],[Υπερωρίες    ]])","v":0}]
[]
[null,"Σεπτέμβριος","Εβδομάδα 1","Υπερωρίες","Εβδομάδα 2","Υπερωρίες ","Εβδομάδα 3","Υπερωρίες  ","Εβδομάδα 4","Υπερωρίες   ","Εβδομάδα 5","Υπερωρίες    "]
[null,"Δευτέρα"]
[null,"Τρίτη"]
[null,"Τετάρτη"]
[null,"Πέμπτη"]
[null,"Παρασκευή"]
[null,"Σάββατο"]
[null,"Κυριακή"]
[null,"Σύνολο εβδομαδιαίων ωρών",{"$f":"SUBTOTAL(109,Σεπτέμβριος[Εβδομάδα 1])","v":0},{"$f":"SUBTOTAL(109,Σεπτέμβριος[Υπερωρίες])","v":0},{"$f":"SUBTOTAL(109,Σεπτέμβριος[Εβδομάδα 2])","v":0},{"$f":"SUBTOTAL(109,Σεπτέμβριος[[Υπερωρίες ]])","v":0},{"$f":"SUBTOTAL(109,Σεπτέμβριος[Εβδομάδα 3])","v":0},{"$f":"SUBTOTAL(109,Σεπτέμβριος[[Υπερωρίες  ]])","v":0},{"$f":"SUBTOTAL(109,Σεπτέμβριος[Εβδομάδα 4])","v":0},{"$f":"SUBTOTAL(109,Σεπτέμβριος[[Υπερωρίες   ]])","v":0},{"$f":"SUBTOTAL(109,Σεπτέμβριος[Εβδομάδα 5])","v":0},{"$f":"SUBTOTAL(109,Σεπτέμβριος[[Υπερωρίες    ]])","v":0}]
[null,"Σύνολο Σεπ.: Κανονικές ώρες",{"$f":"SUM(Σεπτέμβριος[[#Totals],[Εβδομάδα 1]],Σεπτέμβριος[[#Totals],[Εβδομάδα 2]],Σεπτέμβριος[[#Totals],[Εβδομάδα 3]],Σεπτέμβριος[[#Totals],[Εβδομάδα 4]],Σεπτέμβριος[[#Totals],[Εβδομάδα 5]])","v":0},"Σύνολο Σεπ.: Υπερωρίες",null,{"$f":"SUM(Σεπτέμβριος[[#Totals],[Υπερωρίες]],Σεπτέμβριος[[#Totals],[Υπερωρίες ]],Σεπτέμβριος[[#Totals],[Υπερωρίες  ]],Σεπτέμβριος[[#Totals],[Υπερωρίες   ]],Σεπτέμβριος[[#Totals],[Υπερωρίες    ]])","v":0}]
[]
[null,"Οκτώβριος, Νοέμβριος, Δεκέμβριος     Κάρτα χρόνου υπαλλήλου: Ημερήσια, Εβδομαδιαία, Μηνιαία, Ετήσια"]
[null,"Οκτώβριος","Εβδομάδα 1","Υπερωρίες","Εβδομάδα 2","Υπερωρίες ","Εβδομάδα 3","Υπερωρίες  ","Εβδομάδα 4","Υπερωρίες   ","Εβδομάδα 5","Υπερωρίες    "]
[null,"Δευτέρα"]
[null,"Τρίτη"]
[null,"Τετάρτη"]
[null,"Πέμπτη"]
[null,"Παρασκευή"]
[null,"Σάββατο"]
[null,"Κυριακή"]
[null,"Σύνολο εβδομαδιαίων ωρών",{"$f":"SUBTOTAL(109,Οκτώβριος[Εβδομάδα 1])","v":0},{"$f":"SUBTOTAL(109,Οκτώβριος[Υπερωρίες])","v":0},{"$f":"SUBTOTAL(109,Οκτώβριος[Εβδομάδα 2])","v":0},{"$f":"SUBTOTAL(109,Οκτώβριος[[Υπερωρίες ]])","v":0},{"$f":"SUBTOTAL(109,Οκτώβριος[Εβδομάδα 3])","v":0},{"$f":"SUBTOTAL(109,Οκτώβριος[[Υπερωρίες  ]])","v":0},{"$f":"SUBTOTAL(109,Οκτώβριος[Εβδομάδα 4])","v":0},{"$f":"SUBTOTAL(109,Οκτώβριος[[Υπερωρίες   ]])","v":0},{"$f":"SUBTOTAL(109,Οκτώβριος[Εβδομάδα 5])","v":0},{"$f":"SUBTOTAL(109,Οκτώβριος[[Υπερωρίες    ]])","v":0}]
[null,"Σύνολο Οκτ.: Κανονικές ώρες",{"$f":"SUM(Οκτώβριος[[#Totals],[Εβδομάδα 1]],Οκτώβριος[[#Totals],[Εβδομάδα 2]],Οκτώβριος[[#Totals],[Εβδομάδα 3]],Οκτώβριος[[#Totals],[Εβδομάδα 4]],Οκτώβριος[[#Totals],[Εβδομάδα 5]])","v":0},"Σύνολο Οκτ.: Υπερωρίες",null,{"$f":"SUM(Οκτώβριος[[#Totals],[Υπερωρίες]],Οκτώβριος[[#Totals],[Υπερωρίες ]],Οκτώβριος[[#Totals],[Υπερωρίες  ]],Οκτώβριος[[#Totals],[Υπερωρίες   ]],Οκτώβριος[[#Totals],[Υπερωρίες    ]])","v":0}]
[]
[null,"Νοέμβριος","Εβδομάδα 1","Υπερωρίες","Εβδομάδα 2","Υπερωρίες ","Εβδομάδα 3","Υπερωρίες  ","Εβδομάδα 4","Υπερωρίες   ","Εβδομάδα 5","Υπερωρίες    "]
[null,"Δευτέρα"]
[null,"Τρίτη"]
[null,"Τετάρτη"]
[null,"Πέμπτη"]
[null,"Παρασκευή"]
[null,"Σάββατο"]
[null,"Κυριακή"]
[null,"Σύνολο εβδομαδιαίων ωρών",{"$f":"SUBTOTAL(109,Νοέμβριος[Εβδομάδα 1])","v":0},{"$f":"SUBTOTAL(109,Νοέμβριος[Υπερωρίες])","v":0},{"$f":"SUBTOTAL(109,Νοέμβριος[Εβδομάδα 2])","v":0},{"$f":"SUBTOTAL(109,Νοέμβριος[[Υπερωρίες ]])","v":0},{"$f":"SUBTOTAL(109,Νοέμβριος[Εβδομάδα 3])","v":0},{"$f":"SUBTOTAL(109,Νοέμβριος[[Υπερωρίες  ]])","v":0},{"$f":"SUBTOTAL(109,Νοέμβριος[Εβδομάδα 4])","v":0},{"$f":"SUBTOTAL(109,Νοέμβριος[[Υπερωρίες   ]])","v":0},{"$f":"SUBTOTAL(109,Νοέμβριος[Εβδομάδα 5])","v":0},{"$f":"SUBTOTAL(109,Νοέμβριος[[Υπερωρίες    ]])","v":0}]
[null,"Σύνολο Νοεμ.: Κανονικές ώρες",{"$f":"SUM(Νοέμβριος[[#Totals],[Εβδομάδα 1]],Νοέμβριος[[#Totals],[Εβδομάδα 2]],Νοέμβριος[[#Totals],[Εβδομάδα 3]],Νοέμβριος[[#Totals],[Εβδομάδα 4]],Νοέμβριος[[#Totals],[Εβδομάδα 5]])","v":0},"Σύνολο Νοεμ.: Υπερωρίες",null,{"$f":"SUM(Νοέμβριος[[#Totals],[Υπερωρίες]],Νοέμβριος[[#Totals],[Υπερωρίες ]],Νοέμβριος[[#Totals],[Υπερωρίες  ]],Νοέμβριος[[#Totals],[Υπερωρίες   ]],Νοέμβριος[[#Totals],[Υπερωρίες    ]])","v":0}]
[]
[null,"Δεκέμβριος","Εβδομάδα 1","Υπερωρίες","Εβδομάδα 2","Υπερωρίες ","Εβδομάδα 3","Υπερωρίες  ","Εβδομάδα 4","Υπερωρίες   ","Εβδομάδα 5","Υπερωρίες    "]
[null,"Δευτέρα"]
[null,"Τρίτη"]
[null,"Τετάρτη"]
[null,"Πέμπτη"]
[null,"Παρασκευή"]
[null,"Σάββατο"]
[null,"Κυριακή"]
[null,"Σύνολο εβδομαδιαίων ωρών",{"$f":"SUBTOTAL(109,Δεκέμβριος[Εβδομάδα 1])","v":0},{"$f":"SUBTOTAL(109,Δεκέμβριος[Υπερωρίες])","v":0},{"$f":"SUBTOTAL(105,Δεκέμβριος[Εβδομάδα 2])","v":0},{"$f":"SUBTOTAL(109,Δεκέμβριος[[Υπερωρίες ]])","v":0},{"$f":"SUBTOTAL(109,Δεκέμβριος[Εβδομάδα 3])","v":0},{"$f":"SUBTOTAL(109,Δεκέμβριος[[Υπερωρίες  ]])","v":0},{"$f":"SUBTOTAL(109,Δεκέμβριος[Εβδομάδα 4])","v":0},{"$f":"SUBTOTAL(109,Δεκέμβριος[[Υπερωρίες   ]])","v":0},{"$f":"SUBTOTAL(109,Δεκέμβριος[Εβδομάδα 5])","v":0},{"$f":"SUBTOTAL(109,Δεκέμβριος[[Υπερωρίες    ]])","v":0}]
[null,"Σύνολο Δεκ...: Κανονικές ώρες",{"$f":"SUM(Δεκέμβριος[[#Totals],[Εβδομάδα 1]],Δεκέμβριος[[#Totals],[Εβδομάδα 2]],Δεκέμβριος[[#Totals],[Εβδομάδα 3]],Δεκέμβριος[[#Totals],[Εβδομάδα 4]],Δεκέμβριος[[#Totals],[Εβδομάδα 5]])","v":0},"Σύνολο Δεκ...: Υπερωρίες",null,{"$f":"SUM(Δεκέμβριος[[#Totals],[Υπερωρίες]],Δεκέμβριος[[#Totals],[Υπερωρίες ]],Δεκέμβριος[[#Totals],[Υπερωρίες  ]],Δεκέμβριος[[#Totals],[Υπερωρίες   ]],Δεκέμβριος[[#Totals],[Υπερωρίες    ]])","v":0}]